[Event "Titled Tuesday Blitz October 5 2021"]
[White "Seo, Jung Min"]
[Black "Khusnutdinov, Rustam"]
[WhiteFideId "1734687"]
[BlackFideId "13701703"]
[WhiteElo "2486"]
[BlackElo "2571"]
[Result "1/2-1/2"]
[Round "10"]
[TimeControl "180+1"]
[Date "2021.10.05"]
[WhiteClock "0:01:28"]
[BlackClock "0:00:49"]

1. e4 {[%clk 0:03:00]}  e5 {[%clk 0:02:53]} 2. Nf3 {[%clk 0:03:01]}  Nf6 {[%clk 0:02:53]} 3. Nxe5 {[%clk 0:03:00]}  d6 {[%clk 0:02:53]} 4. Nf3 {[%clk 0:03:01]}  Nxe4 {[%clk 0:02:52]} 5. d4 {[%clk 0:03:01]}  d5 {[%clk 0:02:52]} 6. Bd3 {[%clk 0:03:00]}  Bd6 {[%clk 0:02:51]} 7. O-O {[%clk 0:03:01]}  O-O {[%clk 0:02:51]} 8. c4 {[%clk 0:03:01]}  c6 {[%clk 0:02:51]} 9. Nc3 {[%clk 0:02:57]}  Nxc3 {[%clk 0:02:49]} 10. bxc3 {[%clk 0:02:58]}  dxc4 {[%clk 0:02:50]} 11. Bxc4 {[%clk 0:02:58]}  Bf5 {[%clk 0:02:51]} 12. Re1 {[%clk 0:02:56]}  Nd7 {[%clk 0:02:48]} 13. Bg5 {[%clk 0:02:56]}  Qc7 {[%clk 0:02:42]} 14. Nh4 {[%clk 0:02:56]}  Bg6 {[%clk 0:02:36]} 15. Nxg6 {[%clk 0:02:54]}  hxg6 {[%clk 0:02:37]} 16. g3 {[%clk 0:02:53]}  b5 {[%clk 0:02:25]} 17. Bb3 {[%clk 0:02:52]}  Nb6 {[%clk 0:02:25]} 18. h4 {[%clk 0:02:44]}  Qd7 {[%clk 0:01:54]} 19. Qf3 {[%clk 0:02:36]}  Rae8 {[%clk 0:01:53]} 20. Bc2 {[%clk 0:02:27]}  Rxe1+ {[%clk 0:01:29]} 21. Rxe1 {[%clk 0:02:26]}  Re8 {[%clk 0:01:30]} 22. Rxe8+ {[%clk 0:02:16]}  Qxe8 {[%clk 0:01:31]} 23. Qe4 {[%clk 0:02:16]}  Qxe4 {[%clk 0:01:30]} 24. Bxe4 {[%clk 0:02:16]}  Nd5 {[%clk 0:01:31]} 25. Bd2 {[%clk 0:02:13]}  f5 {[%clk 0:01:31]} 26. Bd3 {[%clk 0:02:11]}  Nb6 {[%clk 0:01:30]} 27. Kf1 {[%clk 0:02:10]}  Kf7 {[%clk 0:01:30]} 28. Ke2 {[%clk 0:02:08]}  Ke6 {[%clk 0:01:30]} 29. Bc2 {[%clk 0:02:06]}  c5 {[%clk 0:01:18]} 30. dxc5 {[%clk 0:02:06]}  Bxc5 {[%clk 0:01:19]} 31. Bb3+ {[%clk 0:02:05]}  Nc4 {[%clk 0:01:19]} 32. Bf4 {[%clk 0:02:00]}  Kd5 {[%clk 0:01:16]} 33. a4 {[%clk 0:01:54]}  a6 {[%clk 0:01:08]} 34. axb5 {[%clk 0:01:54]}  axb5 {[%clk 0:01:09]} 35. f3 {[%clk 0:01:53]}  Bd6 {[%clk 0:01:03]} 36. Bxd6 {[%clk 0:01:50]}  Kxd6 {[%clk 0:01:03]} 37. Bxc4 {[%clk 0:01:35]}  bxc4 {[%clk 0:01:04]} 38. Ke3 {[%clk 0:01:35]}  Ke5 {[%clk 0:00:48]} 39. f4+ {[%clk 0:01:27]}  Kd5 {[%clk 0:00:49]} 40. Kf3 {[%clk 0:01:27]}  Kc5 {[%clk 0:00:48]} 41. Ke3 {[%clk 0:01:28]}  Kd5 {[%clk 0:00:48]} 42. Kf3 {[%clk 0:01:28]}  Kc5 {[%clk 0:00:48]} 43. Ke3 {[%clk 0:01:28]}  Kd5 {[%clk 0:00:49]} 1/2-1/2


[Site "https://www.chess.com"]

[Event "Titled Tuesday Blitz October 5 2021"]
[White "Shkapenko, Pavel"]
[Black "Brunner, Nicolas"]
[WhiteFideId "4151933"]
[BlackFideId "620246"]
[WhiteElo "2386"]
[BlackElo "2372"]
[Result "1-0"]
[Round "10"]
[TimeControl "180+1"]
[Date "2021.10.05"]
[WhiteClock "0:00:37"]
[BlackClock "0:00:06"]

1. e4 {[%clk 0:03:00]}  e5 {[%clk 0:02:59]} 2. Nf3 {[%clk 0:03:00]}  Nc6 {[%clk 0:02:59]} 3. g3 {[%clk 0:03:00]}  Nf6 {[%clk 0:02:56]} 4. d3 {[%clk 0:03:00]}  d5 {[%clk 0:02:55]} 5. exd5 {[%clk 0:03:00]}  Nxd5 {[%clk 0:02:54]} 6. Bg2 {[%clk 0:03:00]}  Bd6 {[%clk 0:02:49]} 7. O-O {[%clk 0:03:00]}  O-O {[%clk 0:02:49]} 8. Re1 {[%clk 0:02:45]}  Re8 {[%clk 0:02:47]} 9. Bd2 {[%clk 0:02:35]}  Bg4 {[%clk 0:02:46]} 10. Nc3 {[%clk 0:02:34]}  Nxc3 {[%clk 0:02:43]} 11. Bxc3 {[%clk 0:02:34]}  Qd7 {[%clk 0:02:43]} 12. Qd2 {[%clk 0:02:32]}  Rad8 {[%clk 0:02:34]} 13. b4 {[%clk 0:02:13]}  a6 {[%clk 0:02:30]} 14. a4 {[%clk 0:02:12]}  f6 {[%clk 0:01:47]} 15. b5 {[%clk 0:02:08]}  axb5 {[%clk 0:01:47]} 16. axb5 {[%clk 0:02:08]}  Ne7 {[%clk 0:01:47]} 17. Nh4 {[%clk 0:01:30]}  b6 {[%clk 0:01:25]} 18. Rab1 {[%clk 0:01:23]}  Bc5 {[%clk 0:01:22]} 19. Qc1 {[%clk 0:01:18]}  Bh3 {[%clk 0:01:20]} 20. Bh1 {[%clk 0:01:14]}  Nd5 {[%clk 0:01:16]} 21. Bd2 {[%clk 0:01:12]}  Qg4 {[%clk 0:00:34]} 22. Qd1 {[%clk 0:01:05]}  Qd4 {[%clk 0:00:26]} 23. Qe2 {[%clk 0:01:00]}  Nc3 {[%clk 0:00:23]} 24. Bxc3 {[%clk 0:01:00]}  Qxc3 {[%clk 0:00:23]} 25. Be4 {[%clk 0:00:56]}  g6 {[%clk 0:00:18]} 26. g4 {[%clk 0:00:51]}  Qd4 {[%clk 0:00:12]} 27. Qf3 {[%clk 0:00:51]}  Bxg4 {[%clk 0:00:12]} 28. Qxg4 {[%clk 0:00:49]}  Qxf2+ {[%clk 0:00:12]} 29. Kh1 {[%clk 0:00:50]}  Kh8 {[%clk 0:00:12]} 30. Rf1 {[%clk 0:00:46]}  Qxc2 {[%clk 0:00:11]} 31. Nxg6+ {[%clk 0:00:45]}  hxg6 {[%clk 0:00:11]} 32. Qxg6 {[%clk 0:00:45]}  Re7 {[%clk 0:00:08]} 33. Rg1 {[%clk 0:00:40]}  Bxg1 {[%clk 0:00:06]} 34. Rxg1 {[%clk 0:00:39]}  Qf2 {[%clk 0:00:06]} 35. Qh6+ {[%clk 0:00:37]} 1-0


[Site "https://www.chess.com"]

[Event "Titled Tuesday Blitz October 5 2021"]
[White "Solon, Nathan"]
[Black "Ibrahimli, Murad"]
[WhiteFideId "2017229"]
[BlackFideId "13410229"]
[WhiteElo "2661"]
[BlackElo "2109"]
[Result "0-1"]
[Round "10"]
[TimeControl "180+1"]
[Date "2021.10.05"]
[WhiteClock "0:00:13"]
[BlackClock "0:00:19"]

1. d4 {[%clk 0:02:38]}  Nf6 {[%clk 0:02:59]} 2. Bg5 {[%clk 0:02:38]}  e6 {[%clk 0:03:00]} 3. e4 {[%clk 0:02:37]}  h6 {[%clk 0:03:01]} 4. Bxf6 {[%clk 0:02:37]}  Qxf6 {[%clk 0:03:01]} 5. c3 {[%clk 0:02:38]}  c5 {[%clk 0:03:00]} 6. Nf3 {[%clk 0:02:34]}  cxd4 {[%clk 0:03:00]} 7. cxd4 {[%clk 0:02:35]}  Bb4+ {[%clk 0:03:00]} 8. Nc3 {[%clk 0:02:34]}  Nc6 {[%clk 0:03:00]} 9. e5 {[%clk 0:02:29]}  Qe7 {[%clk 0:03:00]} 10. Bd3 {[%clk 0:02:29]}  g5 {[%clk 0:02:58]} 11. O-O {[%clk 0:02:21]}  g4 {[%clk 0:02:58]} 12. Nd2 {[%clk 0:02:21]}  Nxd4 {[%clk 0:02:56]} 13. Qxg4 {[%clk 0:02:17]}  Nc6 {[%clk 0:02:55]} 14. Rae1 {[%clk 0:02:03]}  Qg5 {[%clk 0:02:51]} 15. Qe2 {[%clk 0:01:59]}  Nd4 {[%clk 0:02:43]} 16. Qe4 {[%clk 0:01:55]}  Bc5 {[%clk 0:02:30]} 17. Nc4 {[%clk 0:01:49]}  Rg8 {[%clk 0:02:25]} 18. g3 {[%clk 0:01:35]}  Qh5 {[%clk 0:02:21]} 19. Kg2 {[%clk 0:01:32]}  Rb8 {[%clk 0:02:18]} 20. Na4 {[%clk 0:01:29]}  b6 {[%clk 0:02:11]} 21. Nxc5 {[%clk 0:01:28]}  bxc5 {[%clk 0:02:12]} 22. Nd6+ {[%clk 0:01:26]}  Ke7 {[%clk 0:02:11]} 23. Qf4 {[%clk 0:01:17]}  Bb7+ {[%clk 0:01:32]} 24. Be4 {[%clk 0:01:17]}  Bxe4+ {[%clk 0:01:32]} 25. Rxe4 {[%clk 0:01:18]}  Qg6 {[%clk 0:01:18]} 26. b3 {[%clk 0:01:15]}  f5 {[%clk 0:01:10]} 27. Re3 {[%clk 0:01:04]}  Qg5 {[%clk 0:01:07]} 28. Qxg5+ {[%clk 0:01:00]}  hxg5 {[%clk 0:01:08]} 29. Rc1 {[%clk 0:00:58]}  f4 {[%clk 0:01:00]} 30. Re4 {[%clk 0:00:59]}  f3+ {[%clk 0:01:00]} 31. Kf1 {[%clk 0:00:55]}  Rh8 {[%clk 0:00:59]} 32. h4 {[%clk 0:00:47]}  gxh4 {[%clk 0:00:57]} 33. gxh4 {[%clk 0:00:48]}  Rbg8 {[%clk 0:00:57]} 34. Rxc5 {[%clk 0:00:47]}  Ne2 {[%clk 0:00:56]} 35. Ke1 {[%clk 0:00:44]}  Rg1+ {[%clk 0:00:47]} 36. Kd2 {[%clk 0:00:44]}  Ra1 {[%clk 0:00:46]} 37. Ra4 {[%clk 0:00:39]}  Rf1 {[%clk 0:00:38]} 38. Ke3 {[%clk 0:00:39]}  Ng1 {[%clk 0:00:39]} 39. Rxa7 {[%clk 0:00:30]}  Re1+ {[%clk 0:00:39]} 40. Kd2 {[%clk 0:00:30]}  Re2+ {[%clk 0:00:39]} 41. Kd3 {[%clk 0:00:29]}  Rxf2 {[%clk 0:00:39]} 42. Rcc7 {[%clk 0:00:29]}  Rd8 {[%clk 0:00:39]} 43. Ne4 {[%clk 0:00:28]}  Rf1 {[%clk 0:00:31]} 44. Nf6 {[%clk 0:00:26]}  Rd1+ {[%clk 0:00:31]} 45. Kc2 {[%clk 0:00:26]}  Rd4 {[%clk 0:00:27]} 46. Kb2 {[%clk 0:00:20]}  f2 {[%clk 0:00:25]} 47. Rc1 {[%clk 0:00:20]}  Ne2 {[%clk 0:00:17]} 48. Rf1 {[%clk 0:00:20]}  Rd2+ {[%clk 0:00:18]} 49. Ka3 {[%clk 0:00:19]}  Ng3 {[%clk 0:00:18]} 50. Rxf2 {[%clk 0:00:13]}  Rxf2 {[%clk 0:00:19]} 0-1


[Site "https://www.chess.com"]

[Event "Titled Tuesday Blitz October 5 2021"]
[White "Timmermans, Mark"]
[Black "Gelman, Alexander"]
[WhiteFideId "1026399"]
[BlackFideId "4118316"]
[WhiteElo "2460"]
[BlackElo "2375"]
[Result "1-0"]
[Round "10"]
[TimeControl "180+1"]
[Date "2021.10.05"]
[WhiteClock "0:01:38"]
[BlackClock "0:01:54"]

1. b4 {[%clk 0:03:00]}  b6 {[%clk 0:02:55]} 2. Bb2 {[%clk 0:03:00]}  Bb7 {[%clk 0:02:55]} 3. b5 {[%clk 0:03:01]}  Nf6 {[%clk 0:02:49]} 4. e3 {[%clk 0:03:01]}  c5 {[%clk 0:02:46]} 5. c4 {[%clk 0:03:00]}  e6 {[%clk 0:02:45]} 6. Nf3 {[%clk 0:03:00]}  d6 {[%clk 0:02:44]} 7. a4 {[%clk 0:03:00]}  a5 {[%clk 0:02:42]} 8. Be2 {[%clk 0:03:00]}  Nbd7 {[%clk 0:02:42]} 9. O-O {[%clk 0:03:00]}  Qc7 {[%clk 0:02:39]} 10. d4 {[%clk 0:03:00]}  Rg8 {[%clk 0:02:38]} 11. Nfd2 {[%clk 0:02:52]}  g5 {[%clk 0:02:38]} 12. Bf3 {[%clk 0:02:53]}  g4 {[%clk 0:02:39]} 13. Bxb7 {[%clk 0:02:53]}  Qxb7 {[%clk 0:02:39]} 14. Nc3 {[%clk 0:02:50]}  h5 {[%clk 0:02:39]} 15. Qc2 {[%clk 0:02:46]}  h4 {[%clk 0:02:32]} 16. Nce4 {[%clk 0:02:46]}  h3 {[%clk 0:02:31]} 17. dxc5 {[%clk 0:02:42]}  bxc5 {[%clk 0:02:01]} 18. Bxf6 {[%clk 0:02:37]}  d5 {[%clk 0:02:02]} 19. Bh4 {[%clk 0:02:33]}  dxe4 {[%clk 0:02:02]} 20. Qxe4 {[%clk 0:02:33]}  Qxe4 {[%clk 0:01:59]} 21. Nxe4 {[%clk 0:02:34]}  f5 {[%clk 0:01:56]} 22. Nf6+ {[%clk 0:02:13]}  Nxf6 {[%clk 0:01:56]} 23. Bxf6 {[%clk 0:02:14]}  Kf7 {[%clk 0:01:56]} 24. Be5 {[%clk 0:02:12]}  Bg7 {[%clk 0:01:52]} 25. Bxg7 {[%clk 0:02:12]}  Kxg7 {[%clk 0:01:52]} 26. Rfd1 {[%clk 0:02:12]}  Rgd8 {[%clk 0:01:53]} 27. gxh3 {[%clk 0:02:06]}  gxh3 {[%clk 0:01:53]} 28. Kf1 {[%clk 0:02:05]}  Kf6 {[%clk 0:01:53]} 29. Rxd8 {[%clk 0:01:58]}  Rxd8 {[%clk 0:01:53]} 30. Ke2 {[%clk 0:01:58]}  Rg8 {[%clk 0:01:53]} 31. b6 {[%clk 0:01:58]}  Ke5 {[%clk 0:01:52]} 32. Rb1 {[%clk 0:01:56]}  Kd6 {[%clk 0:01:52]} 33. Rb5 {[%clk 0:01:53]}  Kc6 {[%clk 0:01:52]} 34. b7 {[%clk 0:01:53]}  Rb8 {[%clk 0:01:51]} 35. Rxa5 {[%clk 0:01:51]}  Rxb7 {[%clk 0:01:51]} 36. Rb5 {[%clk 0:01:51]}  Rg7 {[%clk 0:01:50]} 37. a5 {[%clk 0:01:48]}  Rg2 {[%clk 0:01:50]} 38. a6 {[%clk 0:01:43]}  Rg1 {[%clk 0:01:50]} 39. Ra5 {[%clk 0:01:42]}  Rg8 {[%clk 0:01:50]} 40. a7 {[%clk 0:01:42]}  Ra8 {[%clk 0:01:50]} 41. Kf3 {[%clk 0:01:42]}  Kb6 {[%clk 0:01:51]} 42. Rb5+ {[%clk 0:01:40]}  Kc6 {[%clk 0:01:51]} 43. Ra5 {[%clk 0:01:41]}  Kb6 {[%clk 0:01:51]} 44. Ra1 {[%clk 0:01:41]}  Rxa7 {[%clk 0:01:49]} 45. Rxa7 {[%clk 0:01:33]}  Kxa7 {[%clk 0:01:49]} 46. Kg3 {[%clk 0:01:34]}  Ka6 {[%clk 0:01:50]} 47. Kxh3 {[%clk 0:01:35]}  Ka5 {[%clk 0:01:51]} 48. Kg2 {[%clk 0:01:35]}  Kb4 {[%clk 0:01:51]} 49. h4 {[%clk 0:01:36]}  Kxc4 {[%clk 0:01:52]} 50. h5 {[%clk 0:01:37]}  Kd3 {[%clk 0:01:51]} 51. h6 {[%clk 0:01:37]}  c4 {[%clk 0:01:52]} 52. h7 {[%clk 0:01:38]}  c3 {[%clk 0:01:53]} 53. h8=Q {[%clk 0:01:39]}  c2 {[%clk 0:01:54]} 54. Qd4+ {[%clk 0:01:39]}  Ke2 {[%clk 0:01:54]} 55. Qc3 {[%clk 0:01:39]}  Kd1 {[%clk 0:01:54]} 56. Qd3+ {[%clk 0:01:39]}  Kc1 {[%clk 0:01:55]} 57. Kf3 {[%clk 0:01:39]}  Kb2 {[%clk 0:01:53]} 58. Qb5+ {[%clk 0:01:39]}  Ka1 {[%clk 0:01:54]} 59. Qa4+ {[%clk 0:01:39]}  Kb1 {[%clk 0:01:54]} 60. Qb3+ {[%clk 0:01:40]}  Kc1 {[%clk 0:01:54]} 61. Ke2 {[%clk 0:01:38]} 1-0


[Site "https://www.chess.com"]

[Event "Titled Tuesday Blitz October 5 2021"]
[White "Timofeev, Artyom"]
[Black "Yoo, Christopher Woojin"]
[WhiteFideId "4140419"]
[BlackFideId "30909694"]
[WhiteElo "2591"]
[BlackElo "2105"]
[Result "1/2-1/2"]
[Round "10"]
[TimeControl "180+1"]
[Date "2021.10.05"]
[WhiteClock "0:00:32"]
[BlackClock "0:00:08"]

1. c4 {[%clk 0:03:00]}  Nf6 {[%clk 0:02:59]} 2. Nc3 {[%clk 0:03:00]}  e6 {[%clk 0:02:59]} 3. Nf3 {[%clk 0:02:59]}  d5 {[%clk 0:02:59]} 4. e3 {[%clk 0:02:59]}  b6 {[%clk 0:02:52]} 5. b3 {[%clk 0:02:57]}  Bb7 {[%clk 0:02:52]} 6. Bb2 {[%clk 0:02:58]}  Nbd7 {[%clk 0:02:53]} 7. Be2 {[%clk 0:02:58]}  a6 {[%clk 0:02:51]} 8. O-O {[%clk 0:02:57]}  Bd6 {[%clk 0:02:51]} 9. d3 {[%clk 0:02:56]}  O-O {[%clk 0:02:51]} 10. Qc2 {[%clk 0:02:56]}  Qe7 {[%clk 0:02:45]} 11. Rad1 {[%clk 0:02:49]}  Rad8 {[%clk 0:02:39]} 12. h3 {[%clk 0:02:46]}  Rfe8 {[%clk 0:02:39]} 13. Rfe1 {[%clk 0:02:46]}  c5 {[%clk 0:02:22]} 14. cxd5 {[%clk 0:02:45]}  exd5 {[%clk 0:02:20]} 15. d4 {[%clk 0:02:45]}  Rc8 {[%clk 0:02:10]} 16. dxc5 {[%clk 0:02:33]}  Bxc5 {[%clk 0:02:10]} 17. Qd3 {[%clk 0:02:27]}  Bb4 {[%clk 0:02:10]} 18. Rf1 {[%clk 0:02:24]}  Nc5 {[%clk 0:02:07]} 19. Qf5 {[%clk 0:02:18]}  g6 {[%clk 0:02:03]} 20. Qb1 {[%clk 0:02:14]}  Nce4 {[%clk 0:01:56]} 21. Nxe4 {[%clk 0:02:10]}  Nxe4 {[%clk 0:01:57]} 22. Qd3 {[%clk 0:01:54]}  Bc3 {[%clk 0:01:40]} 23. Bxc3 {[%clk 0:01:45]}  Nxc3 {[%clk 0:01:41]} 24. Rd2 {[%clk 0:01:43]}  Qa3 {[%clk 0:01:19]} 25. Nd4 {[%clk 0:01:38]}  Nxa2 {[%clk 0:01:11]} 26. Ra1 {[%clk 0:01:31]}  Rc1+ {[%clk 0:01:10]} 27. Rd1 {[%clk 0:01:31]}  Rxa1 {[%clk 0:01:10]} 28. Rxa1 {[%clk 0:01:31]}  Qb2 {[%clk 0:01:07]} 29. Rb1 {[%clk 0:01:28]}  Qc3 {[%clk 0:01:05]} 30. Qd1 {[%clk 0:01:16]}  Qc5 {[%clk 0:00:58]} 31. b4 {[%clk 0:01:10]}  Nxb4 {[%clk 0:00:55]} 32. Qa4 {[%clk 0:01:10]}  Nc6 {[%clk 0:00:53]} 33. Nxc6 {[%clk 0:00:57]}  Bxc6 {[%clk 0:00:54]} 34. Qxa6 {[%clk 0:00:57]}  Rb8 {[%clk 0:00:43]} 35. Qa1 {[%clk 0:00:53]}  b5 {[%clk 0:00:39]} 36. Rc1 {[%clk 0:00:53]}  Qb6 {[%clk 0:00:25]} 37. Bd1 {[%clk 0:00:52]}  Bd7 {[%clk 0:00:21]} 38. Bb3 {[%clk 0:00:47]}  Be6 {[%clk 0:00:21]} 39. Qe5 {[%clk 0:00:47]}  Rd8 {[%clk 0:00:17]} 40. Qd4 {[%clk 0:00:45]}  Qxd4 {[%clk 0:00:17]} 41. exd4 {[%clk 0:00:45]}  Ra8 {[%clk 0:00:16]} 42. Rc5 {[%clk 0:00:44]}  Ra1+ {[%clk 0:00:15]} 43. Kh2 {[%clk 0:00:44]}  b4 {[%clk 0:00:13]} 44. Bxd5 {[%clk 0:00:41]}  Bxd5 {[%clk 0:00:09]} 45. Rxd5 {[%clk 0:00:41]}  Rd1 {[%clk 0:00:10]} 46. Rd8+ {[%clk 0:00:40]}  Kg7 {[%clk 0:00:10]} 47. d5 {[%clk 0:00:38]}  Kf6 {[%clk 0:00:09]} 48. d6 {[%clk 0:00:32]}  Ke6 {[%clk 0:00:08]} 49. Rb8 {[%clk 0:00:32]}  Rd4 {[%clk 0:00:07]} 50. Rb6 {[%clk 0:00:32]}  Rxd6 {[%clk 0:00:04]} 51. Rxb4 {[%clk 0:00:32]}  Kf6 {[%clk 0:00:04]} 52. g3 {[%clk 0:00:29]}  h5 {[%clk 0:00:04]} 53. Kg2 {[%clk 0:00:30]}  Kg7 {[%clk 0:00:04]} 54. h4 {[%clk 0:00:30]}  Ra6 {[%clk 0:00:04]} 55. Rc4 {[%clk 0:00:30]}  Ra5 {[%clk 0:00:04]} 56. Rb4 {[%clk 0:00:30]}  Rc5 {[%clk 0:00:04]} 57. Ra4 {[%clk 0:00:30]}  Rb5 {[%clk 0:00:04]} 58. Rc4 {[%clk 0:00:30]}  Ra5 {[%clk 0:00:05]} 59. Rb4 {[%clk 0:00:31]}  Ra6 {[%clk 0:00:05]} 60. Rc4 {[%clk 0:00:31]}  Re6 {[%clk 0:00:06]} 61. Rb4 {[%clk 0:00:31]}  Rf6 {[%clk 0:00:06]} 62. Rc4 {[%clk 0:00:31]}  Re6 {[%clk 0:00:07]} 63. Rb4 {[%clk 0:00:32]}  Rf6 {[%clk 0:00:07]} 64. Rc4 {[%clk 0:00:32]}  Re6 {[%clk 0:00:08]} 1/2-1/2


[Site "https://www.chess.com"]

[Event "Titled Tuesday Blitz October 5 2021"]
[White "Tsyhanchuk, Stanislav"]
[Black "Shuvalov, Evgenij"]
[WhiteFideId "13505130"]
[BlackFideId "4187237"]
[WhiteElo "2078"]
[BlackElo "2129"]
[Result "1-0"]
[Round "10"]
[TimeControl "180+1"]
[Date "2021.10.05"]
[WhiteClock "0:00:15"]
[BlackClock "0:00:09"]

1. d4 {[%clk 0:02:59]}  Nf6 {[%clk 0:02:59]} 2. c4 {[%clk 0:02:58]}  g6 {[%clk 0:02:59]} 3. Nf3 {[%clk 0:02:56]}  Bg7 {[%clk 0:02:59]} 4. g3 {[%clk 0:02:56]}  c6 {[%clk 0:02:58]} 5. Bg2 {[%clk 0:02:55]}  d5 {[%clk 0:02:58]} 6. O-O {[%clk 0:02:54]}  O-O {[%clk 0:02:58]} 7. Nc3 {[%clk 0:02:54]}  dxc4 {[%clk 0:02:55]} 8. a4 {[%clk 0:02:46]}  Na6 {[%clk 0:02:54]} 9. e3 {[%clk 0:02:39]}  Nd7 {[%clk 0:02:29]} 10. Nd2 {[%clk 0:02:36]}  e5 {[%clk 0:02:28]} 11. d5 {[%clk 0:02:19]}  cxd5 {[%clk 0:02:21]} 12. Nxd5 {[%clk 0:02:19]}  Nb6 {[%clk 0:02:16]} 13. Nxb6 {[%clk 0:02:16]}  Qxb6 {[%clk 0:02:09]} 14. Nxc4 {[%clk 0:02:16]}  Qc7 {[%clk 0:02:09]} 15. Qe2 {[%clk 0:02:10]}  Be6 {[%clk 0:02:06]} 16. Na3 {[%clk 0:02:04]}  Nc5 {[%clk 0:01:47]} 17. Bd2 {[%clk 0:01:54]}  Nb3 {[%clk 0:01:45]} 18. Rad1 {[%clk 0:01:54]}  Nxd2 {[%clk 0:01:22]} 19. Rxd2 {[%clk 0:01:52]}  Rac8 {[%clk 0:01:18]} 20. Nb5 {[%clk 0:01:49]}  Qb8 {[%clk 0:01:08]} 21. Rfd1 {[%clk 0:01:38]}  Bc4 {[%clk 0:01:06]} 22. Qf3 {[%clk 0:01:32]}  Bb3 {[%clk 0:00:54]} 23. Ra1 {[%clk 0:01:30]}  b6 {[%clk 0:00:39]} 24. e4 {[%clk 0:01:17]}  Be6 {[%clk 0:00:33]} 25. Rad1 {[%clk 0:01:11]}  a6 {[%clk 0:00:31]} 26. Nc3 {[%clk 0:01:08]}  Rc4 {[%clk 0:00:30]} 27. b3 {[%clk 0:01:01]}  Rd4 {[%clk 0:00:28]} 28. Nd5 {[%clk 0:00:58]}  Rd8 {[%clk 0:00:21]} 29. Rxd4 {[%clk 0:00:41]}  exd4 {[%clk 0:00:21]} 30. Ne7+ {[%clk 0:00:41]}  Kf8 {[%clk 0:00:19]} 31. Nc6 {[%clk 0:00:42]}  Qd6 {[%clk 0:00:19]} 32. Nxd8 {[%clk 0:00:42]}  Qxd8 {[%clk 0:00:20]} 33. Qd3 {[%clk 0:00:40]}  a5 {[%clk 0:00:19]} 34. f4 {[%clk 0:00:39]}  Qc7 {[%clk 0:00:15]} 35. e5 {[%clk 0:00:38]}  Qc3 {[%clk 0:00:15]} 36. Qxc3 {[%clk 0:00:37]}  dxc3 {[%clk 0:00:16]} 37. Rc1 {[%clk 0:00:36]}  Bxb3 {[%clk 0:00:16]} 38. Bc6 {[%clk 0:00:36]}  c2 {[%clk 0:00:15]} 39. Be4 {[%clk 0:00:31]}  Bxa4 {[%clk 0:00:15]} 40. Bxc2 {[%clk 0:00:31]}  Bd7 {[%clk 0:00:15]} 41. Bd3 {[%clk 0:00:29]}  b5 {[%clk 0:00:13]} 42. Rc5 {[%clk 0:00:28]}  f6 {[%clk 0:00:11]} 43. Bxb5 {[%clk 0:00:26]}  Bxb5 {[%clk 0:00:11]} 44. Rxb5 {[%clk 0:00:27]}  fxe5 {[%clk 0:00:11]} 45. fxe5 {[%clk 0:00:27]}  Ke7 {[%clk 0:00:11]} 46. Rxa5 {[%clk 0:00:27]}  Ke6 {[%clk 0:00:11]} 47. Ra7 {[%clk 0:00:27]}  Bxe5 {[%clk 0:00:11]} 48. Rxh7 {[%clk 0:00:27]}  Kf6 {[%clk 0:00:11]} 49. Rb7 {[%clk 0:00:27]}  g5 {[%clk 0:00:11]} 50. Kg2 {[%clk 0:00:26]}  Kf5 {[%clk 0:00:12]} 51. h3 {[%clk 0:00:23]}  Bd4 {[%clk 0:00:11]} 52. Kf3 {[%clk 0:00:16]}  Bc3 {[%clk 0:00:09]} 53. Rb5+ {[%clk 0:00:16]}  Kf6 {[%clk 0:00:09]} 54. Kg4 {[%clk 0:00:15]}  Bd2 {[%clk 0:00:09]} 55. Kh5 {[%clk 0:00:15]}  Be3 {[%clk 0:00:09]} 56. g4 {[%clk 0:00:15]}  Bd2 {[%clk 0:00:08]} 57. Rf5+ {[%clk 0:00:15]}  Kg7 {[%clk 0:00:08]} 58. Rxg5+ {[%clk 0:00:15]}  Kh7 {[%clk 0:00:09]} 59. Rd5 {[%clk 0:00:15]}  Bc1 {[%clk 0:00:09]} 60. Rd7+ {[%clk 0:00:15]}  Kh8 {[%clk 0:00:09]} 61. g5 {[%clk 0:00:15]}  Bb2 {[%clk 0:00:09]} 62. Kg6 {[%clk 0:00:15]} 1-0


[Site "https://www.chess.com"]

[Event "Titled Tuesday Blitz October 5 2021"]
[White "Vlassov, Nikolai"]
[Black "Salinas Herrera, Pablo"]
[WhiteFideId "4103360"]
[BlackFideId "3407128"]
[WhiteElo "2407"]
[BlackElo "2541"]
[Result "1-0"]
[Round "10"]
[TimeControl "180+1"]
[Date "2021.10.05"]
[WhiteClock "0:00:04"]
[BlackClock "0:00:05"]

1. e4 {[%clk 0:03:00]}  c5 {[%clk 0:02:58]} 2. c3 {[%clk 0:03:00]}  d6 {[%clk 0:02:57]} 3. d4 {[%clk 0:03:00]}  Nf6 {[%clk 0:02:57]} 4. Bd3 {[%clk 0:03:00]}  Qc7 {[%clk 0:02:57]} 5. f4 {[%clk 0:02:59]}  Bg4 {[%clk 0:02:57]} 6. Nf3 {[%clk 0:02:50]}  Bxf3 {[%clk 0:02:57]} 7. gxf3 {[%clk 0:02:34]}  g6 {[%clk 0:02:55]} 8. Be3 {[%clk 0:02:27]}  Bh6 {[%clk 0:02:55]} 9. Na3 {[%clk 0:02:10]}  a6 {[%clk 0:02:53]} 10. Qd2 {[%clk 0:02:05]}  O-O {[%clk 0:02:38]} 11. f5 {[%clk 0:02:02]}  Bxe3 {[%clk 0:02:38]} 12. Qxe3 {[%clk 0:02:02]}  Nc6 {[%clk 0:02:38]} 13. fxg6 {[%clk 0:02:00]}  hxg6 {[%clk 0:02:38]} 14. d5 {[%clk 0:01:51]}  Ne5 {[%clk 0:02:38]} 15. Be2 {[%clk 0:01:50]}  c4 {[%clk 0:02:27]} 16. f4 {[%clk 0:01:23]}  Nd3+ {[%clk 0:02:27]} 17. Bxd3 {[%clk 0:01:23]}  cxd3 {[%clk 0:02:28]} 18. Qxd3 {[%clk 0:01:23]}  b5 {[%clk 0:02:27]} 19. Nc2 {[%clk 0:01:22]}  Rfe8 {[%clk 0:02:26]} 20. O-O {[%clk 0:01:16]}  e6 {[%clk 0:02:23]} 21. dxe6 {[%clk 0:01:11]}  Rxe6 {[%clk 0:02:23]} 22. Rae1 {[%clk 0:01:10]}  Rae8 {[%clk 0:02:23]} 23. f5 {[%clk 0:01:02]}  Rxe4 {[%clk 0:02:22]} 24. Rxe4 {[%clk 0:00:40]}  Nxe4 {[%clk 0:02:22]} 25. fxg6 {[%clk 0:00:39]}  Qc5+ {[%clk 0:02:22]} 26. Nd4 {[%clk 0:00:25]}  Qg5+ {[%clk 0:02:22]} 27. Kh1 {[%clk 0:00:25]}  fxg6 {[%clk 0:02:22]} 28. Qf3 {[%clk 0:00:22]}  Qe7 {[%clk 0:01:52]} 29. Rg1 {[%clk 0:00:20]}  g5 {[%clk 0:01:28]} 30. Nf5 {[%clk 0:00:16]}  Qf6 {[%clk 0:01:27]} 31. h4 {[%clk 0:00:08]}  Re5 {[%clk 0:01:25]} 32. Nd4 {[%clk 0:00:02]}  Qh6 {[%clk 0:01:07]} 33. Rf1 {[%clk 0:00:02]}  Qg7 {[%clk 0:00:39]} 34. h5 {[%clk 0:00:02]}  g4 {[%clk 0:00:37]} 35. Qf4 {[%clk 0:00:02]}  Rxh5+ {[%clk 0:00:16]} 36. Kg2 {[%clk 0:00:01]}  Re5 {[%clk 0:00:16]} 37. Nf5 {[%clk 0:00:01]}  Qg6 {[%clk 0:00:03]} 38. Ne7+ {[%clk 0:00:01]}  Rxe7 {[%clk 0:00:03]} 39. Qf8+ {[%clk 0:00:02]}  Kh7 {[%clk 0:00:04]} 40. Qxe7+ {[%clk 0:00:03]}  Kh6 {[%clk 0:00:05]} 41. Qh4+ {[%clk 0:00:03]}  Kg7 {[%clk 0:00:05]} 42. Qe7+ {[%clk 0:00:03]}  Kh6 {[%clk 0:00:05]} 43. Rh1+ {[%clk 0:00:04]} 1-0


[Site "https://www.chess.com"]